fUSD/lending_fUSD_20250823
["ID","MTS","AMOUNT","RATE_DAILY","PERIOD"]
[380958268,1755912760750,-2566.25,0.00016438,2]
[380958269,1755912760759,-548.91,0.00016438,2]
[380958270,1755912760769,-400.0,0.00016438,2]
[380958271,1755912760778,-468.96,0.00016438,2]
[380958272,1755912760787,-947.84,0.00016438,2]
[380958273,1755912760797,-1155.0,0.00016438,2]
[380958274,1755912760806,-1053.52,0.00016438,2]
[380958275,1755912760816,-400.0,0.00016438,2]
[380958276,1755912760825,-659.68,0.00016438,2]
[380958277,1755912760834,-691.7,0.00016438,2]
[380958278,1755912760844,-557.81,0.00016438,2]
[380958279,1755912760853,-1327.17,0.00016438,2]
[380958280,1755912760863,-719.87,0.00016438,2]
[380958281,1755912760872,-621.05,0.00016438,2]
[380958282,1755912760883,-532.88,0.00016438,2]
[380958283,1755912760892,-400.0,0.00016438,2]
[380958284,1755912760902,-482.24,0.00016438,2]
[380958285,1755912760911,-825.64,0.00016438,2]
[380958286,1755912760921,-786.36,0.00016438,2]
[380958287,1755912760930,-811.77,0.00016438,2]
[380958288,1755912760940,-448.05,0.00016438,2]
[380958289,1755912760949,-400.0,0.00016438,2]
[380958290,1755912760959,-508.4,0.00016438,2]
[380958291,1755912760969,-400.0,0.00016438,2]
[380958292,1755912760979,-471.12,0.00016438,2]
[380958293,1755912760989,-522.09,0.00016438,2]
[380958294,1755912761000,-478.08,0.00016438,2]
[380958295,1755912761010,-1160.25,0.00016438,2]
[380958296,1755912761019,-400.0,0.00016438,2]
[380958297,1755912761029,-400.0,0.00016438,2]
[380958298,1755912761047,-413.45,0.00016438,2]
[380958299,1755912761059,-400.01,0.00016438,2]
[380958300,1755912761071,-1658.24,0.00016438,2]
[380958301,1755912761081,-876.0,0.00016438,2]
[380958302,1755912761091,-928.99,0.00016438,2]
[380958303,1755912761103,-1082.57,0.00016438,2]
[380958304,1755912761113,-599.68,0.00016438,2]
[380958305,1755912761122,-400.0,0.00016438,2]
[380958306,1755912761133,-581.91,0.00016438,2]
[380958307,1755912761143,-576.13,0.00016438,2]
[380958308,1755912761153,-535.34,0.00016438,2]
[380958309,1755912761163,-808.82,0.00016438,2]
[380958310,1755912761172,-704.93,0.00016438,2]
[380958311,1755912761182,-629.77,0.00016438,2]
[380958312,1755912761191,-757.81,0.00016438,2]
[380958313,1755912761201,-909.17,0.00016438,2]
[380958314,1755912761211,-458.74,0.00016438,2]
[380958315,1755912761220,-677.9,0.00016438,2]
[380958316,1755912761230,-400.0,0.00016438,2]
[380958317,1755912761239,-412.49,0.00016438,2]
[380958318,1755912761250,-1628.12,0.00016438,2]
[380958319,1755912761259,-400.0,0.00016438,2]
[380958320,1755912761269,-556.37,0.00016438,2]
[380958321,1755912761278,-562.56,0.00016438,2]
[380958322,1755912761288,-554.4,0.00016438,2]
[380958323,1755912761297,-699.23,0.00016438,2]
[380958324,1755912761307,-901.46,0.00016438,2]
[380958325,1755912761317,-442.39,0.00016438,2]
[380958326,1755912761326,-627.55,0.00016438,2]
[380958327,1755912761336,-400.0,0.00016438,2]
[380958328,1755912761346,-475.41,0.00016438,2]
[380958329,1755912761356,-400.0,0.00016438,2]
[380958330,1755912761365,-493.66,0.00016438,2]
[380958331,1755912761375,-618.33,0.00016438,2]
[380958332,1755912761385,-400.0,0.00016438,2]
[380958333,1755912761399,-400.0,0.00016438,2]
[380958334,1755912761409,-1043.76,0.00016438,2]
[380958335,1755912761418,-400.0,0.00016438,2]
[380958336,1755912761428,-400.0,0.00016438,2]
[380958337,1755912761437,-415.82,0.00016438,2]
[380958338,1755912761447,-491.94,0.00016438,2]
[380958339,1755912761456,-682.29,0.00016438,2]
[380958340,1755912761466,-400.0,0.00016438,2]
[380958341,1755912761475,-427.73,0.00016438,2]
[380958342,1755912761485,-640.17,0.00016438,2]
[380958343,1755912761495,-501.87,0.00016438,2]
[380958344,1755912761505,-537.21,0.00016438,2]
[380958345,1755912761514,-468.97,0.00016438,2]
[380958346,1755912761523,-568.93,0.00016438,2]
[380958347,1755912761532,-577.38,0.00016438,2]
[380958348,1755912761542,-620.18,0.00016438,2]
[380958349,1755912761551,-500.0,0.00016438,2]
[380958350,1755912761561,-457.02,0.00016438,2]
[380958351,1755912761570,-1005.26,0.00016438,2]
[380958352,1755912761579,-400.0,0.00016438,2]
[380958353,1755912761588,-773.99,0.00016438,2]
[380958354,1755912761597,-400.0,0.00016438,2]
[380958355,1755912761607,-400.0,0.00016438,2]
[380958356,1755912761616,-400.0,0.00016438,2]
[380958357,1755912761625,-400.0,0.00016438,2]
[380958358,1755912761635,-400.0,0.00016438,2]
[380958359,1755912761645,-400.0,0.00016438,2]
[380958360,1755912761654,-407.11,0.00016438,2]
[380958361,1755912761664,-610.39,0.00016438,2]
[380958362,1755912761674,-933.58,0.00016438,2]
[380958363,1755912761683,-646.19,0.00016438,2]
[380958364,1755912761693,-431.04,0.00016438,2]
[380958365,1755912761703,-400.0,0.00016438,2]
[380958366,1755912761713,-605.05,0.00016438,2]
[380958367,1755912761723,-400.0,0.00016438,2]
[380958368,1755912761732,-938.83,0.00016438,2]
[380958369,1755912761742,-664.71,0.00016438,2]
[380958370,1755912761752,-490.42,0.00016438,2]
[380958371,1755912761761,-546.05,0.00016438,2]
[380958372,1755912761771,-1070.54,0.00016438,2]
[380958373,1755912761781,-410.97,0.00016438,2]
[380958374,1755912761790,-570.73,0.00016438,2]
[380958375,1755912761800,-665.32,0.00016438,2]
[380958376,1755912761809,-716.24,0.00016438,2]
[380958377,1755912761819,-400.0,0.00016438,2]
[380958378,1755912761828,-400.0,0.00016438,2]
[380958379,1755912761838,-697.95,0.00016438,2]
[380958380,1755912761848,-400.0,0.00016438,2]
[380958381,1755912761858,-731.6,0.00016438,2]
[380958382,1755912761868,-1401.51,0.00016438,2]
[380958383,1755912761878,-509.97,0.00016438,2]
[380958384,1755912761887,-400.0,0.00016438,2]
[380958385,1755912761897,-474.27,0.00016438,2]
[380958386,1755912761906,-1143.48,0.00016438,2]
[380958387,1755912761918,-633.21,0.00016438,2]
[380958388,1755912761939,-1150.35,0.00016438,2]
[380958389,1755912761948,-551.73,0.00016438,2]
[380958390,1755912761958,-400.0,0.00016438,2]
[380958391,1755912761967,-803.81,0.00016438,2]
[380958392,1755912761978,-400.0,0.00016438,2]
[380958393,1755912761988,-709.31,0.00016438,2]
[380958394,1755912762000,-507.56,0.00016438,2]
[380958395,1755912762009,-1049.21,0.00016438,2]
[380958396,1755912762018,-400.0,0.00016438,2]
[380958397,1755912762029,-870.96,0.00016438,2]
[380958398,1755912762039,-400.0,0.00016438,2]
[380958399,1755912762048,-743.59,0.00016438,2]
[380958400,1755912762058,-599.05,0.00016438,2]
[380958401,1755912762068,-640.94,0.00016438,2]
[380958402,1755912762077,-878.26,0.00016438,2]
[380958403,1755912762088,-400.0,0.00016438,2]
[380958404,1755912762097,-518.56,0.00016438,2]
[380958405,1755912762107,-784.45,0.00016438,2]
[380958406,1755912762117,-1743.04,0.00016438,2]
[380958407,1755912762127,-671.68,0.00016438,2]
[380958408,1755912762137,-939.87,0.00016438,2]
[380958409,1755912762146,-538.86,0.00016438,2]
[380958410,1755912762156,-983.76,0.00016438,2]
[380958411,1755912762167,-582.18,0.00016438,2]
[380958412,1755912762178,-400.0,0.00016438,2]
[380958413,1755912762189,-839.71,0.00016438,2]
[380958414,1755912762199,-400.0,0.00016438,2]
[380958415,1755912762210,-706.05,0.00016438,2]
[380958416,1755912762220,-1021.93,0.00016438,2]
[380958417,1755912762230,-890.17,0.00016438,2]
[380958418,1755912762240,-1278.62,0.00016438,2]
[380958419,1755912762251,-649.66,0.00016438,2]
[380958420,1755912762261,-400.0,0.00016438,2]
[380958421,1755912762270,-527.2,0.00016438,2]
[380958422,1755912762281,-634.12,0.00016438,2]
[380958423,1755912762292,-784.4,0.00016438,2]
[380958424,1755912762301,-985.25,0.00016438,2]
[380958425,1755912762310,-726.51,0.00016438,2]
[380958426,1755912762319,-1099.97,0.00016438,2]
[380958427,1755912762329,-754.33,0.00016438,2]
[380958428,1755912762338,-971.12,0.00016438,2]
[380958429,1755912762347,-1154.79,0.00016438,2]
[380958430,1755912762357,-691.37,0.00016438,2]
[380958431,1755912762367,-1157.08,0.00016438,2]
[380958432,1755912762376,-1203.18,0.00016438,2]
[380958433,1755912762386,-400.0,0.00016438,2]
[380958434,1755912762402,-535.95,0.00016438,2]
[380958435,1755912762411,-888.95,0.00016438,2]
[380958436,1755912762421,-656.19,0.00016438,2]
[380958437,1755912762431,-807.2,0.00016438,2]
[380958438,1755912762443,-1439.09,0.00016438,2]
[380958439,1755912762453,-659.77,0.00016438,2]
[380958440,1755912762463,-400.0,0.00016438,2]
[380958441,1755912762475,-583.57,0.00016438,2]
[380958442,1755912762485,-731.16,0.00016438,2]
[380958443,1755912762496,-890.52,0.00016438,2]
[380958444,1755912762506,-400.0,0.00016438,2]
[380958445,1755912762515,-766.72,0.00016438,2]
[380958446,1755912762525,-635.62,0.00016438,2]
[380958447,1755912762534,-855.77,0.00016438,2]
[380958448,1755912762543,-400.0,0.00016438,2]
[380958449,1755912762553,-986.02,0.00016438,2]
[380958450,1755912762563,-963.55,0.00016438,2]
[380958451,1755912762573,-967.68,0.00016438,2]
[380958452,1755912762583,-482.07,0.00016438,2]
[380958453,1755912762593,-400.0,0.00016438,2]
[380958454,1755912762602,-400.0,0.00016438,2]
[380958455,1755912762612,-466.03,0.00016438,2]
[380958456,1755912762621,-859.0,0.00016438,2]
[380958457,1755912762631,-828.37,0.00016438,2]
[380958458,1755912762641,-507.72,0.00016438,2]
[380958459,1755912762650,-1494.7,0.00016438,2]
[380958460,1755912762659,-777.58,0.00016438,2]
[380958461,1755912762669,-400.0,0.00016438,2]
[380958462,1755912762679,-400.0,0.00016438,2]
[380958463,1755912762688,-506.23,0.00016438,2]
[380958464,1755912762698,-781.12,0.00016438,2]
[380958465,1755912762708,-479.67,0.00016438,2]
[380958466,1755912762717,-937.77,0.00016438,2]
[380958467,1755912762727,-755.98,0.00016438,2]
[380958468,1755912762736,-585.32,0.00016438,2]
[380958469,1755912762746,-400.0,0.00016438,2]
[380958470,1755912762755,-941.46,0.00016438,2]
[380958471,1755912762765,-344.03892816,0.00016438,2]
[380958472,1755912762774,-1039.23,0.00016438,2]
[380958473,1755912762784,-979.86,0.00016438,2]
[380958474,1755912762793,-498.14,0.00016438,2]
[380958475,1755912762803,-873.74,0.00016438,2]
[380958476,1755912762812,-545.13,0.00016438,2]
[380958477,1755912762822,-400.0,0.00016438,2]
[380958478,1755912762831,-958.27,0.00016438,2]
[380958479,1755912762841,-792.76,0.00016438,2]
[380958480,1755912762850,-650.0,0.00016438,2]
[380958481,1755912762859,-903.77,0.00016438,2]
[380958482,1755912762868,-505.4,0.00016438,2]
[380958483,1755912762878,-400.0,0.00016438,2]
[380958484,1755912762887,-764.74,0.00016438,2]
[380958485,1755912762897,-400.0,0.00016438,2]
[380958486,1755912762906,-822.02,0.00016438,2]
[380958487,1755912762916,-400.0,0.00016438,2]
[380958488,1755912762925,-400.0,0.00016438,2]
[380958489,1755912762935,-400.0,0.00016438,2]
[380958490,1755912762945,-493.69,0.00016438,2]
[380958491,1755912762954,-550.01,0.00016438,2]
[380958492,1755912762964,-532.46,0.00016438,2]
[380958493,1755912762973,-400.0,0.00016438,2]
[380958494,1755912762982,-400.0,0.00016438,2]
[380958495,1755912762992,-400.0,0.00016438,2]
[380958496,1755912763002,-957.7,0.00016438,2]
[380958497,1755912763011,-724.98,0.00016438,2]
[380958498,1755912763022,-400.0,0.00016438,2]
[380958499,1755912763033,-712.18,0.00016438,2]
[380958500,1755912763043,-3061.19,0.00016438,2]
[380958501,1755912763054,-484.95,0.00016438,2]
[380958502,1755912763063,-839.82,0.00016438,2]
[380958503,1755912763073,-400.0,0.00016438,2]
[380958504,1755912763083,-1167.85,0.00016438,2]
[380958505,1755912763092,-400.0,0.00016438,2]
[380958506,1755912763102,-402.87,0.00016438,2]
[380958507,1755912763111,-668.01,0.00016438,2]
[380958508,1755912763121,-911.43,0.00016438,2]
[380958509,1755912763131,-400.0,0.00016438,2]
[380958510,1755912763141,-440.73,0.00016438,2]
[380958511,1755912763152,-400.0,0.00016438,2]
[380958512,1755912763161,-631.42,0.00016438,2]
[380958513,1755912763171,-931.59,0.00016438,2]
[380958514,1755912763180,-400.0,0.00016438,2]
[380958515,1755912763190,-585.39,0.00016438,2]
[380958516,1755912763200,-400.0,0.00016438,2]
[380958517,1755912763210,-613.21,0.00016438,2]
[380958518,1755912763221,-821.68,0.00016438,2]
[380958519,1755912763231,-464.46,0.00016438,2]
[380958520,1755912763241,-980.7,0.00016438,2]
[380958521,1755912763253,-400.0,0.00016438,2]
[380958522,1755912763262,-408.02,0.00016438,2]
[380958523,1755912763272,-400.0,0.00016438,2]
[380958524,1755912763282,-627.98,0.00016438,2]
[380958525,1755912763292,-840.52,0.00016438,2]
[380958526,1755912763301,-468.81,0.00016438,2]
[380958527,1755912763311,-1000.0,0.00016438,2]
[380958528,1755912763320,-1325.94,0.00016438,2]
[380958529,1755912763330,-300.0,0.00016438,2]
[380958530,1755912763339,-666.0,0.00016438,3]
[380958531,1755912763349,-2118.87,0.00016438,2]
[380958532,1755912763358,-300.0,0.00016438,3]
[380958533,1755912763367,-300.0,0.00016438,3]
[380958534,1755912763377,-300.0,0.00016438,3]
[380958535,1755912763388,-300.0,0.00016438,3]
[380958536,1755912763402,-300.0,0.00016438,3]
[380958537,1755912763412,-221.49,0.00016438,2]
[380958538,1755912763422,-2000.0,0.00016438,2]
[380958539,1755912763431,-151.0,0.00016438,2]
[380958540,1755912763440,-151.0,0.00016438,2]
[380958541,1755912763450,-151.0,0.00016438,2]
[380958542,1755912763459,-151.0,0.00016438,2]
[380958543,1755912763469,-151.0,0.00016438,2]
[380958544,1755912763483,-151.191872,0.00016438,2]
[380958545,1755912763493,-150.0,0.0001645,2]
[380958546,1755912763502,-1500.0,0.00016457,2]
[380958547,1755912763512,-1500.0,0.00016457,2]
[380958548,1755912763521,-252.31360437,0.00016457,2]
[380958549,1755912763531,-1500.0,0.00016457,2]
[380958550,1755912763541,-2500.0,0.00016464,2]
[380958551,1755912763551,-150.0,0.00016494,2]
[380958552,1755912763561,-150.0,0.00016494,2]
[380958553,1755912763570,-150.0,0.00016494,2]
[380958554,1755912763580,-1000.0,0.00016498,2]
[380958555,1755912763589,-1000.0,0.000165,3]
[380958556,1755912763599,-1000.0,0.000165,3]
[380958557,1755912763608,-1000.0,0.000165,3]
[380958558,1755912763617,-212.08495325,0.000165,3]
[380958559,1755912763627,-1000.0,0.00016557,2]
[380958560,1755912763637,-352.84497065,0.000166,2]
[380958561,1755912763647,-295652.48721289,0.000166,3]
[380958562,1755912763656,-6801.78371735,0.000166,3]
[380958563,1755912763665,-212.08495325,0.000166,3]
[380958564,1755912763676,-458.56382065,0.000166,3]
[380958565,1755912763685,-150.0,0.00016606,2]
[380958566,1755912763695,-400.0,0.00016611,2]
[380958567,1755912763704,-1000.0,0.00016617,2]
[380958568,1755912763714,-300.0,0.0001664,3]
[380958569,1755912763724,-150.0,0.00016658,2]
[380958570,1755912763734,-150.0,0.00016658,2]
[380958571,1755912763744,-1000.0,0.00016677,2]
[380958572,1755912763754,-1048.22198918,0.00016678,2]
[380958573,1755912763763,-549.67,0.00016694,2]
[380958574,1755912763774,-1000.0,0.00016699,2]
[380958575,1755912763783,-96307.12,0.000167,2]
[380958576,1755912763793,-337.66429709,0.00016711,2]
[380958577,1755912763803,-300.0,0.00016711,2]
[380958578,1755912763812,-300.0,0.00016711,2]
[380958579,1755912763822,-300.0,0.00016711,2]
[380958580,1755912763831,-300.0,0.00016711,2]
[380958581,1755912763841,-300.0,0.00016711,2]
[380958582,1755912763851,-300.0,0.00016711,2]
[380958583,1755912763861,-300.0,0.00016711,2]
[380958584,1755912763872,-300.0,0.00016711,2]
[380958585,1755912763882,-300.0,0.00016711,2]
[380958586,1755912763897,-300.0,0.00016711,2]
[380958587,1755912763907,-300.0,0.00016711,2]
[380958588,1755912763918,-300.0,0.00016711,2]
[380958589,1755912763928,-733.0,0.00016712,2]
[380958590,1755912763939,-500.0,0.00016712,2]
[380958591,1755912763950,-1367.0,0.00016712,2]
[380958592,1755912763960,-500.0,0.00016712,2]
[380958593,1755912763972,-300.0,0.00016712,2]
[380958594,1755912763983,-500.0,0.00016712,2]
[380958595,1755912763993,-500.0,0.00016712,2]
[380958596,1755912764003,-500.0,0.00016712,2]
[380958597,1755912764013,-500.0,0.00016712,2]
[380958598,1755912764022,-2066.0,0.00016712,2]
[380958599,1755912764032,-500.0,0.00016712,2]
[380958600,1755912764042,-500.0,0.00016712,2]
[380958601,1755912764051,-1471.92,0.00016712,2]
[380958602,1755912764061,-404.24,0.00016712,2]
[380958603,1755912764071,-400.0,0.00016712,2]
[380958604,1755912764080,-400.0,0.00016712,2]
[380958605,1755912764090,-957.1,0.00016712,2]
[380958606,1755912764100,-500.5,0.00016712,2]
[380958607,1755912764110,-400.0,0.00016712,2]
[380958608,1755912764119,-630.13,0.00016712,2]
[380958609,1755912764129,-484.29,0.00016712,2]
[380958610,1755912764138,-691.2,0.00016712,2]
[380958611,1755912764148,-400.0,0.00016712,2]
[380958612,1755912764158,-564.0,0.00016712,2]
[380958613,1755912764167,-922.66,0.00016712,2]
[380958614,1755912764177,-1309.75,0.00016712,2]
[380958615,1755912764187,-400.0,0.00016712,2]
[380958616,1755912764197,-400.0,0.00016712,2]
[380958617,1755912764207,-410.64,0.00016712,2]
[380958618,1755912764217,-400.0,0.00016712,2]
[380958619,1755912764227,-400.0,0.00016712,2]
[380958620,1755912764237,-400.0,0.00016712,2]
[380958621,1755912764246,-522.42662089,0.00016712,2]
[380958622,1755912764256,-400.0,0.00016712,2]
[380958623,1755912764265,-814.35,0.00016712,2]
[380958624,1755912764275,-703.72,0.00016712,2]
[380958625,1755912764286,-400.0,0.00016712,2]
[380958626,1755912764299,-400.0,0.00016712,2]
[380958627,1755912764310,-400.0,0.00016712,2]
[380958628,1755912764320,-400.0,0.00016712,2]
[380958629,1755912764330,-416.84,0.00016712,2]
[380958630,1755912764340,-552.81,0.00016712,2]
[380958631,1755912764349,-565.22,0.00016712,2]
[380958632,1755912764359,-400.0,0.00016712,2]
[380958633,1755912764369,-457.37,0.00016712,2]
[380958634,1755912764379,-400.0,0.00016712,2]
[380958635,1755912764389,-400.0,0.00016712,2]
[380958636,1755912764402,-454.18,0.00016712,2]
[380958637,1755912764411,-408.41,0.00016712,2]
[380958638,1755912764421,-429.23,0.00016712,2]
[380958639,1755912764430,-400.0,0.00016712,2]
[380958640,1755912764441,-400.0,0.00016712,2]
[380958641,1755912764452,-400.0,0.00016712,2]
[380958642,1755912764464,-582.37,0.00016712,2]
[380958643,1755912764475,-400.0,0.00016712,2]
[380958644,1755912764485,-400.0,0.00016712,2]
[380958645,1755912764494,-400.0,0.00016712,2]
[380958646,1755912764504,-400.0,0.00016712,2]
[380958647,1755912764514,-759.88,0.00016712,2]
[380958648,1755912764527,-400.0,0.00016712,2]
[380958649,1755912764537,-591.39,0.00016712,2]
[380958650,1755912764547,-413.97,0.00016712,2]
[380958651,1755912764791,-649.74,0.00016712,2]
[380958652,1755912764803,-446.38,0.00016712,2]
[380958653,1755912764813,-506.47,0.00016712,2]
[380958654,1755912764823,-715.02,0.00016712,2]
[380958655,1755912764835,-400.0,0.00016712,2]
[380958656,1755912764845,-537.25,0.00016712,2]
[380958657,1755912764854,-400.0,0.00016712,2]
[380958658,1755912764865,-512.45,0.00016712,2]
[380958659,1755912764874,-527.41,0.00016712,2]
[380958660,1755912764884,-400.0,0.00016712,2]
[380958661,1755912764894,-521.1,0.00016712,2]
[380958662,1755912764903,-400.0,0.00016712,2]
[380958663,1755912764913,-446.92,0.00016712,2]
[380958664,1755912764923,-449.44,0.00016712,2]
[380958665,1755912764932,-400.0,0.00016712,2]
[380958666,1755912764943,-675.1,0.00016712,2]
[380958667,1755912764952,-400.0,0.00016712,2]
[380958668,1755912764962,-400.0,0.00016712,2]
[380958669,1755912764972,-609.3,0.00016712,2]
[380958670,1755912764982,-654.03,0.00016712,2]
[380958671,1755912764991,-400.0,0.00016712,2]
[380958672,1755912765000,-400.0,0.00016712,2]
[380958673,1755912765011,-661.96,0.00016712,2]
[380958674,1755912765020,-568.98,0.00016712,2]
[380958675,1755912765030,-400.0,0.00016712,2]
[380958676,1755912765040,-400.0,0.00016712,2]
[380958677,1755912765049,-400.0,0.00016712,2]
[380958678,1755912765059,-709.86,0.00016712,2]
[380958679,1755912765069,-400.0,0.00016712,2]
[380958680,1755912765078,-488.99,0.00016712,2]
[380958681,1755912765087,-812.84,0.00016712,2]
[380958682,1755912765098,-437.4,0.00016712,2]
[380958683,1755912765107,-586.38,0.00016712,2]
[380958684,1755912765117,-442.27,0.00016712,2]
[380958685,1755912765126,-562.61,0.00016712,2]
[380958686,1755912765145,-400.0,0.00016712,2]
[380958687,1755912765156,-400.0,0.00016712,2]
[380958688,1755912765166,-845.65,0.00016712,2]
[380958689,1755912765176,-441.24,0.00016712,2]
[380958690,1755912765186,-529.98,0.00016712,2]
[380958691,1755912765196,-400.0,0.00016712,2]
[380958692,1755912765206,-400.0,0.00016712,2]
[380958693,1755912765217,-570.39,0.00016712,2]
[380958694,1755912765227,-400.0,0.00016712,2]
[380958695,1755912765237,-421.77,0.00016712,2]
[380958696,1755912765248,-400.0,0.00016712,2]
[380958697,1755912765258,-400.0,0.00016712,2]
[380958698,1755912765267,-400.0,0.00016712,2]
[380958699,1755912765278,-400.0,0.00016712,2]
[380958700,1755912765288,-420.12285242,0.00016712,2]
[380958701,1755912765297,-464.48,0.00016712,2]
[380958702,1755912765308,-532.49077661,0.00016712,2]
[380958703,1755912765318,-411.87050695,0.00016712,2]
[380958704,1755912765328,-415.36,0.00016712,2]
[380958705,1755912765339,-530.98,0.00016712,2]
[380958706,1755912765348,-400.0,0.00016712,2]
[380958707,1755912765358,-512.43,0.00016712,2]
[380958708,1755912765368,-516.79,0.00016712,2]
[380958709,1755912765379,-400.0,0.00016712,2]
[380958710,1755912765391,-400.0,0.00016712,2]
[380958711,1755912765402,-400.0,0.00016712,2]
[380958712,1755912765412,-400.0,0.00016712,2]
[380958713,1755912765422,-409.44,0.00016712,2]
[380958714,1755912765432,-400.0,0.00016712,2]
[380958715,1755912765442,-400.0,0.00016712,2]
[380958716,1755912765452,-499.57,0.00016712,2]
[380958717,1755912765462,-577.94,0.00016712,2]
[380958718,1755912765472,-400.0,0.00016712,2]
[380958719,1755912765483,-400.0,0.00016712,2]
[380958720,1755912765493,-476.9,0.00016712,2]
[380958721,1755912765505,-637.7,0.00016712,2]
[380958722,1755912765515,-423.83,0.00016712,2]
[380958723,1755912765525,-400.0,0.00016712,2]
[380958724,1755912765539,-873.47,0.00016712,2]
[380958725,1755912765550,-459.29,0.00016712,2]
[380958726,1755912765560,-571.62,0.00016712,2]
[380958727,1755912765571,-409.95,0.00016712,2]
[380958728,1755912765581,-1704.41,0.00016712,2]
[380958729,1755912765592,-549.98,0.00016712,2]
[380958730,1755912765603,-400.0,0.00016712,2]
[380958731,1755912765613,-400.0,0.00016712,2]
[380958732,1755912765624,-400.0,0.00016712,2]
[380958733,1755912765635,-400.0,0.00016712,2]
[380958734,1755912765646,-531.47,0.00016712,2]
[380958735,1755912765657,-400.0,0.00016712,2]
[380958736,1755912765668,-456.18,0.00016712,2]
[380958737,1755912765678,-400.0,0.00016712,2]
[380958738,1755912765691,-400.0,0.00016712,2]
[380958739,1755912765702,-890.29,0.00016712,2]
[380958740,1755912765712,-501.53396574,0.00016712,2]
[380958741,1755912765723,-400.0,0.00016712,2]
[380958742,1755912765734,-406.1,0.00016712,2]
[380958743,1755912765745,-400.0,0.00016712,2]
[380958744,1755912765755,-421.32,0.00016712,2]
[380958745,1755912765766,-400.0,0.00016712,2]
[380958746,1755912765776,-478.43,0.00016712,2]
[380958747,1755912765788,-400.0,0.00016712,2]
[380958748,1755912765798,-487.04,0.00016712,2]
[380958749,1755912765808,-595.85,0.00016712,2]
[380958750,1755912765819,-542.43,0.00016712,2]
[380958751,1755912765830,-510.81,0.00016712,2]
[380958752,1755912765841,-451.04,0.00016712,2]
[380958753,1755912765852,-400.0,0.00016712,2]
[380958754,1755912765863,-477.02,0.00016712,2]
[380958755,1755912765873,-667.8,0.00016712,2]
[380958756,1755912765884,-400.0,0.00016712,2]
[380958757,1755912765894,-400.0,0.00016712,2]
[380958758,1755912765905,-754.76,0.00016712,2]
[380958759,1755912765915,-400.0,0.00016712,2]
[380958760,1755912765926,-1030.1,0.00016712,2]
[380958761,1755912765940,-510.89,0.00016712,2]
[380958762,1755912765951,-436.99,0.00016712,2]
[380958763,1755912765961,-657.25,0.00016712,2]
[380958764,1755912765972,-400.0,0.00016712,2]
[380958765,1755912765983,-417.45,0.00016712,2]
[380958766,1755912765993,-400.0,0.00016712,2]
[380958767,1755912766005,-400.0,0.00016712,2]